bitfinex-derivatives/quotes_BTCF0:USTF0_20250904
["timestamp","ask_amount","ask_price","bid_price","bid_amount"]
[1756989122153,1.74590229,110860.0,110850.0,0.59]
[1756989122353,1.74590229,110860.0,110850.0,0.62563]
[1756989122545,1.74790229,110860.0,110850.0,0.62563]
[1756989123053,1.74782229,110860.0,110850.0,0.59]
[1756989123957,0.85249229,110860.0,110850.0,0.7369118]
[1756989124255,0.03959,110860.0,110850.0,0.9869118]
[1756989124452,0.87708,110860.0,110850.0,1.3477118]
[1756989124650,0.87704,110860.0,110850.0,1.3477118]
[1756989125047,0.87704,110860.0,110850.0,1.48311224]
[1756989125445,0.9672137,110860.0,110850.0,1.39293044]
[1756989125655,1.32913769,110860.0,110850.0,1.39293044]
[1756989127054,1.74765769,110860.0,110850.0,0.72540044]
[1756989127353,1.74765769,110860.0,110840.0,0.0002]
[1756989127354,0.1387423,110850.0,110840.0,0.0002]
[1756989127555,0.1387423,110850.0,110830.0,0.42773]
[1756989127556,0.1257804,110840.0,110830.0,0.42773]
[1756989127750,0.9637904,110840.0,110830.0,1.0577286]
[1756989128055,1.36130439,110840.0,110830.0,1.19317032]
[1756989128251,1.37427439,110840.0,110830.0,0.55]
[1756989128457,1.0123504,110840.0,110830.0,0.58563]
[1756989128755,0.1257804,110840.0,110830.0,0.96753]
[1756989128956,1.36146439,110840.0,110830.0,0.96853]
[1756989129655,1.36162439,110840.0,110830.0,0.96853]
[1756989130258,0.48770439,110840.0,110830.0,1.3087293]
[1756989130447,1.32595439,110840.0,110830.0,1.3087293]
[1756989130653,0.9637104,110840.0,110830.0,1.3989535]
[1756989131359,1.32563439,110840.0,110830.0,1.3087542]
[1756989131959,1.32563439,110840.0,110830.0,1.3989535]
[1756989132158,0.9637104,110840.0,110830.0,1.3989535]
[1756989132654,1.98626838,110840.0,110830.0,0.551]
[1756989132852,2.34706838,110840.0,110830.0,0.011]
[1756989133058,2.65706838,110840.0,110830.0,0.131]
[1756989133958,1.64420474,110840.0,110830.0,0.131]
[1756989134158,1.75932873,110840.0,110830.0,0.49844]
[1756989134863,1.76032873,110840.0,110830.0,0.46]
[1756989135760,1.39840474,110840.0,110830.0,0.49744]
[1756989136153,1.76032873,110840.0,110830.0,0.49744]
[1756989136461,1.76032873,110840.0,110830.0,0.46]
[1756989136661,2.66225272,110840.0,110830.0,0.46]
[1756989136873,2.37225272,110840.0,110830.0,0.1]
[1756989137159,2.66225272,110840.0,110830.0,0.1]
[1756989138559,2.69225272,110840.0,110830.0,0.1]
[1756989138960,2.37225272,110840.0,110830.0,0.1]
[1756989139152,2.68225272,110840.0,110830.0,0.1]
[1756989139659,2.00873645,110840.0,110830.0,0.1]
[1756989140964,2.00753645,110840.0,110830.0,0.58]
[1756989141155,2.00753645,110840.0,110830.0,0.07]
[1756989141354,1.13201645,110840.0,110830.0,0.58]
[1756989141554,1.74456645,110840.0,110830.0,0.63918]
[1756989142157,1.75700645,110840.0,110830.0,0.63918]
[1756989142356,1.75700645,110840.0,110830.0,0.58]
[1756989142955,1.75700645,110840.0,110830.0,0.63918]
[1756989142956,1.74456645,110840.0,110830.0,0.63918]
[1756989143152,1.02343474,110840.0,110830.0,0.7293794]
[1756989143365,1.02371474,110840.0,110830.0,0.9793794]
[1756989143562,1.38451474,110840.0,110830.0,0.9793794]
[1756989143760,1.38451474,110840.0,110830.0,0.88918]
[1756989143761,1.75728645,110840.0,110830.0,0.88918]
[1756989144065,1.75728645,110840.0,110830.0,0.86744]
[1756989144258,1.75728645,110840.0,110830.0,0.58]
[1756989144665,1.75728645,110840.0,110830.0,0.61744]
[1756989145052,1.75728645,110840.0,110830.0,0.58]
[1756989145765,2.00728645,110840.0,110830.0,0.09]
[1756989146565,2.29728645,110840.0,110830.0,0.09]
[1756989147662,2.00608645,110840.0,110830.0,0.09]
[1756989147867,2.15608645,110840.0,110830.0,0.09]
[1756989148665,1.13148645,110840.0,110830.0,0.01]
[1756989148865,2.00568645,110840.0,110830.0,0.03]
[1756989149271,2.13568645,110840.0,110830.0,0.03]
[1756989150062,3.87872645,110840.0,110830.0,0.03]
[1756989150464,3.51839474,110840.0,110830.0,0.03]
[1756989150658,3.74872645,110840.0,110830.0,0.03]
[1756989151872,4.08872645,110840.0,110830.0,0.03]
[1756989152064,3.74872645,110840.0,110830.0,0.03]
[1756989153764,4.08872645,110840.0,110830.0,0.03]
[1756989155774,3.74872645,110840.0,110830.0,0.03]
[1756989156069,4.08740645,110840.0,110830.0,0.03]
[1756989158473,3.83740645,110840.0,110830.0,0.03]
[1756989158674,3.83740645,110840.0,110830.0,0.03399]
[1756989159177,3.47707474,110840.0,110830.0,0.01125]
[1756989159377,0.1258602,110830.0,110820.0,0.07060675]
[1756989159574,1.71875191,110830.0,110820.0,0.70811675]
[1756989160674,1.35783191,110830.0,110820.0,0.79832505]
[1756989161277,1.71863191,110830.0,110820.0,0.65040675]
[1756989161575,1.85863191,110830.0,110820.0,0.34040675]
[1756989162176,1.85863191,110830.0,110820.0,0.34140675]
[1756989163675,2.01863191,110830.0,110820.0,0.34140675]
[1756989163871,2.26863191,110830.0,110820.0,0.23749]
[1756989164170,2.26863191,110830.0,110820.0,0.001]
[1756989164371,0.0902083,110820.0,110810.0,0.00074]
[1756989164566,1.11134001,110820.0,110810.0,1e-07]
[1756989165176,0.0902164,110810.0,110800.0,1e-07]
[1756989165373,0.0902327,110790.0,110780.0,0.01]
[1756989165569,4.14385432,110790.0,110780.0,0.01]
[1756989166069,4.14377432,110790.0,110780.0,0.01]
[1756989166475,3.78332261,110790.0,110780.0,0.01]
[1756989166773,4.14365432,110790.0,110780.0,0.59]
[1756989167078,4.14365432,110790.0,110780.0,0.01]
[1756989167279,3.26665432,110790.0,110780.0,0.01]
[1756989167479,4.14473432,110790.0,110780.0,0.01]
[1756989167980,2.93765432,110790.0,110780.0,0.08192641]
[1756989168280,3.83335431,110790.0,110780.0,0.01]
[1756989168480,4.13335431,110790.0,110780.0,0.01]
[1756989169667,4.38335431,110790.0,110750.0,0.3608]
[1756989169974,0.0902739,110740.0,110730.0,0.02167]
[1756989170179,3.43160561,110740.0,110730.0,0.54167]
[1756989170773,3.42960561,110740.0,110730.0,0.54167]
[1756989170980,3.0662739,110740.0,110730.0,0.57771]
[1756989171173,3.42660561,110740.0,110730.0,0.57771]
[1756989171779,3.42660561,110740.0,110730.0,0.57871]
[1756989172086,3.42660561,110740.0,110730.0,0.54267]
[1756989172679,4.08740561,110740.0,110720.0,0.0101]
[1756989172875,0.0902894,110720.0,110710.0,0.0001]
[1756989173076,2.01286111,110720.0,110710.0,0.08]
[1756989173281,2.30319282,110720.0,110710.0,0.0571313]
[1756989173481,0.0902977,110710.0,110700.0,0.00408]
[1756989173775,1.69406941,110710.0,110700.0,0.01398]
[1756989173981,0.81042941,110710.0,110700.0,0.01398]
[1756989174184,0.93934793,110710.0,110700.0,0.01398]
[1756989174404,1.70170793,110710.0,110700.0,0.02565]
[1756989174581,0.81042941,110710.0,110700.0,0.81169]
[1756989174782,1.69822941,110710.0,110700.0,0.81169]
[1756989175088,0.4550977,110710.0,110700.0,0.81169]
[1756989175291,1.70154941,110710.0,110700.0,0.81169]
[1756989175683,0.45462941,110710.0,110700.0,0.81169]
[1756989175984,0.0942977,110710.0,110700.0,1.17249]
[1756989176191,0.0942977,110710.0,110700.0,1.30798107]
[1756989176192,0.89096,110710.0,110700.0,1.30798107]
[1756989176388,0.8916,110710.0,110700.0,1.30798107]
[1756989176595,0.005,110710.0,110700.0,1.30798107]
[1756989176791,0.9880977,110710.0,110700.0,1.30798107]
[1756989177286,0.0903929,110720.0,110700.0,1.30798107]
[1756989177593,0.8958,110710.0,110700.0,1.30798107]
[1756989177778,0.9860977,110710.0,110700.0,1.30798107]
[1756989177982,0.9860977,110710.0,110700.0,1.05798107]
[1756989178286,0.9860977,110710.0,110700.0,1.14828697]
[1756989178686,0.9860977,110710.0,110700.0,1.05798107]
[1756989179592,0.9820977,110710.0,110700.0,1.05798107]
[1756989179890,0.9770977,110710.0,110700.0,1.05798107]
[1756989180693,0.9860977,110710.0,110700.0,1.14828697]
[1756989180993,0.89436,110710.0,110700.0,1.48861712]
[1756989181181,0.9846577,110710.0,110700.0,1.48861712]
[1756989181492,0.89436,110710.0,110700.0,1.39828697]
[1756989181681,0.9846577,110710.0,110700.0,1.48861712]
[1756989182788,0.89436,110710.0,110700.0,1.48861712]
[1756989183291,0.89236,110710.0,110700.0,1.48861712]
[1756989183682,0.88736,110710.0,110700.0,1.48861712]
[1756989183884,0.88936,110710.0,110700.0,1.48861712]
[1756989184185,0.004,110710.0,110700.0,1.84894883]
[1756989184387,0.0001,110720.0,110710.0,0.1480077]
[1756989184685,0.0001,110730.0,110720.0,0.1479996]
[1756989184885,1.75001,110740.0,110730.0,0.1479914]
[1756989185083,1.74352,110740.0,110730.0,1.0387914]
[1756989185283,1.74352,110740.0,110730.0,1.17513668]
[1756989185690,2.6294,110740.0,110730.0,1.17513668]
[1756989185991,1.76592997,110750.0,110740.0,0.1119433]
[1756989186181,2.65302997,110750.0,110740.0,1.0887833]
[1756989186488,2.74968507,110750.0,110740.0,0.7279833]
[1756989186891,2.65941997,110750.0,110740.0,0.7279833]
[1756989187094,2.65941997,110750.0,110740.0,1.0887833]
[1756989187786,1.77721997,110750.0,110740.0,1.0887833]
[1756989188192,2.66589997,110750.0,110740.0,1.0887833]
[1756989188388,2.75616507,110750.0,110740.0,1.0887833]
[1756989188786,3.11649678,110750.0,110740.0,1.0527433]
[1756989189293,2.75616507,110750.0,110740.0,1.0527433]
[1756989189490,3.11649678,110750.0,110740.0,1.0527433]
[1756989189687,3.36649678,110750.0,110740.0,1.0527433]
[1756989189892,3.36649678,110750.0,110740.0,0.96247]
[1756989190194,0.1005933,110740.0,110730.0,0.476916]
[1756989190387,0.46092501,110740.0,110730.0,0.59564]
[1756989190694,1.07172501,110740.0,110730.0,0.22397]
[1756989191488,1.07272501,110740.0,110730.0,0.22397]
[1756989192094,1.22272501,110740.0,110730.0,0.22397]
[1756989192293,1.22272501,110740.0,110730.0,0.00397]
[1756989193087,1.07372501,110740.0,110730.0,0.00397]
[1756989193694,1.21272501,110740.0,110730.0,0.00397]
[1756989194000,1.22072501,110740.0,110730.0,0.00397]
[1756989194395,0.8603933,110740.0,110730.0,0.00397]
[1756989194596,1.22072501,110740.0,110730.0,0.02483]
[1756989194992,1.97116501,110740.0,110730.0,0.02483]
[1756989195399,2.11116501,110740.0,110730.0,0.00397]
[1756989195600,2.11116501,110740.0,110730.0,0.02483]
[1756989195794,0.83072501,110740.0,110730.0,0.06252]
[1756989196000,1.72064511,110740.0,110730.0,0.06252]
[1756989196694,1.72064511,110740.0,110730.0,0.02483]
[1756989198194,0.4703934,110740.0,110730.0,0.1528015]
[1756989198390,1.3594734,110740.0,110730.0,0.7128015]
[1756989198594,1.71980511,110740.0,110730.0,0.56397]
[1756989198897,1.3594734,110740.0,110730.0,0.05397]
[1756989199096,1.71980511,110740.0,110730.0,0.05397]
[1756989199500,1.72290219,110740.0,110730.0,0.05397]
[1756989200205,1.3594734,110740.0,110730.0,0.05397]
[1756989200395,1.72290219,110740.0,110730.0,0.05397]
[1756989200696,0.74354879,110740.0,110730.0,0.02397]
[1756989200898,1.63682879,110740.0,110730.0,0.67252]
[1756989201098,1.63666879,110740.0,110730.0,0.56252]
[1756989201293,1.63666879,110740.0,110730.0,0.6528015]
[1756989201491,1.63666879,110740.0,110730.0,0.6151115]
[1756989201693,0.38012,110740.0,110730.0,0.9028015]
[1756989201899,0.91296,110740.0,110730.0,1.2636015]
[1756989202094,0.90264,110740.0,110730.0,1.2636015]
[1756989202291,0.009,110740.0,110730.0,1.3955638]
[1756989202496,0.90256,110740.0,110730.0,1.84929827]
[1756989203495,0.90056,110740.0,110730.0,1.49037948]
[1756989203898,0.89556,110740.0,110730.0,1.49037948]
[1756989204196,0.89856,110740.0,110730.0,1.49037948]
[1756989205004,0.89856,110740.0,110730.0,1.85117948]
[1756989205800,0.005,110740.0,110730.0,2.21460827]
[1756989206106,0.8976,110740.0,110730.0,2.21460827]
[1756989206307,0.005,110740.0,110730.0,2.21460827]
[1756989206608,0.89732,110740.0,110730.0,2.21460827]
[1756989206801,0.005,110740.0,110730.0,2.21460827]
[1756989207205,1.76592997,110750.0,110740.0,0.1488234]
[1756989207401,2.65798997,110750.0,110740.0,1.39206064]
[1756989207602,2.65786997,110750.0,110740.0,1.52817362]
[1756989207800,2.65782997,110750.0,110740.0,1.8684793]
[1756989208001,1.76582997,110750.0,110740.0,1.8684793]
[1756989208303,1.7446,110750.0,110740.0,1.8684793]
[1756989208499,2.60235,110750.0,110740.0,1.8684793]
[1756989208698,2.60235,110750.0,110740.0,1.50505051]
[1756989208898,2.60535,110750.0,110740.0,1.8684793]
[1756989209109,2.60635,110750.0,110740.0,1.8684793]
[1756989209999,2.60635,110750.0,110740.0,1.50505051]
[1756989210199,2.60635,110750.0,110740.0,1.8684793]
[1756989211003,2.60635,110750.0,110740.0,1.60947085]
[1756989211307,2.60635,110750.0,110740.0,1.24604206]
[1756989211603,3.06004399,110750.0,110740.0,1.24604206]
[1756989211799,3.09542399,110750.0,110740.0,1.15573638]
[1756989212198,3.09542399,110750.0,110740.0,0.79493638]
[1756989212405,3.09542399,110750.0,110740.0,1.15573638]
[1756989213218,2.64173,110750.0,110740.0,1.15573638]
[1756989213709,2.60635,110750.0,110740.0,1.15573638]
[1756989216103,1.71431,110750.0,110740.0,1.76916517]
[1756989216311,2.60527,110750.0,110740.0,1.8594627]
[1756989216911,2.60507,110750.0,110740.0,1.8594627]
[1756989217312,2.60507,110750.0,110740.0,1.49603391]
[1756989218108,2.60507,110750.0,110740.0,1.8594627]
[1756989218911,2.60507,110750.0,110740.0,1.49603391]
[1756989219112,2.60507,110750.0,110740.0,1.8594627]
[1756989219614,2.60507,110750.0,110740.0,1.49603391]
[1756989219812,0.0903572,110760.0,110750.0,0.1254252]
[1756989219813,0.0001,110760.0,110750.0,0.1254252]
[1756989220009,2.12628991,110790.0,110780.0,0.1460308]
[1756989220010,1.74424,110790.0,110780.0,0.1460308]
[1756989220203,2.63452,110790.0,110780.0,1.40025959]
[1756989220407,2.63452,110790.0,110780.0,1.53589671]
[1756989220605,1.74424,110790.0,110780.0,1.62619424]
[1756989220807,1.74424,110790.0,110780.0,1.99508616]
[1756989221005,2.63428,110790.0,110780.0,1.99508616]
[1756989221609,2.63428,110790.0,110780.0,2.00415107]
[1756989221819,2.63428,110790.0,110780.0,2.00225107]
[1756989222215,2.63428,110790.0,110780.0,1.99318616]
[1756989222814,2.63428,110790.0,110780.0,2.70537634]
[1756989223010,2.63428,110790.0,110780.0,1.38375737]
[1756989223615,2.7245126,110790.0,110780.0,1.38375737]
[1756989223814,2.63428,110790.0,110780.0,1.38375737]
[1756989224412,2.63428,110790.0,110780.0,1.74718616]
[1756989224613,2.63348,110790.0,110780.0,1.74718616]
[1756989225216,2.63348,110790.0,110780.0,1.74618616]
[1756989225420,2.6332,110790.0,110780.0,1.74618616]
[1756989225616,2.6332,110790.0,110780.0,1.38275737]
[1756989225817,3.33686149,110790.0,110780.0,1.20411904]
[1756989226017,2.9734327,110790.0,110780.0,1.20411904]
[1756989226227,3.37136149,110790.0,110780.0,0.84031904]
[1756989226517,3.37136149,110790.0,110780.0,0.80515904]
[1756989226723,3.38152149,110790.0,110780.0,0.64889192]
[1756989227023,3.38252149,110790.0,110780.0,0.64889192]
[1756989227422,3.37236149,110790.0,110780.0,0.70468192]
[1756989227822,2.48340149,110790.0,110780.0,0.79492272]
[1756989228017,3.37344149,110790.0,110780.0,0.79492272]
[1756989228218,3.37344149,110790.0,110780.0,0.70468192]
[1756989228419,3.37344149,110790.0,110780.0,0.79492272]
[1756989228619,3.0110127,110790.0,110780.0,0.79492272]
[1756989228816,2.7602527,110790.0,110780.0,0.79492272]
[1756989229120,2.7607727,110790.0,110780.0,1.15572272]
[1756989229319,2.7252726,110790.0,110780.0,1.29140318]
[1756989229519,2.7272726,110790.0,110780.0,1.65483197]
[1756989230220,2.7272726,110790.0,110780.0,1.29140318]
[1756989230422,1.74824,110790.0,110780.0,1.29140318]
[1756989230621,2.63624,110790.0,110780.0,1.29140318]
[1756989230824,2.7264726,110790.0,110780.0,1.29140318]
[1756989231216,2.7264726,110790.0,110780.0,1.20116238]
[1756989231417,2.7264726,110790.0,110780.0,1.29140318]
[1756989233128,2.63576,110790.0,110780.0,1.29140318]
[1756989233321,1.74824,110790.0,110780.0,1.29140318]
[1756989233530,2.63468,110790.0,110780.0,1.29140318]
[1756989233725,2.7249126,110790.0,110780.0,1.29140318]
[1756989234225,1.74824,110790.0,110780.0,1.65483197]
[1756989234528,2.63532,110790.0,110780.0,1.74509689]
[1756989234715,2.63472,110790.0,110780.0,1.74509689]
[1756989234916,2.63472,110790.0,110780.0,1.3816681]
[1756989235123,1.74824,110790.0,110780.0,1.3816681]
[1756989235324,2.7249526,110790.0,110780.0,1.3816681]
[1756989235626,2.7229526,110790.0,110780.0,1.3816681]
[1756989235929,2.7209526,110790.0,110780.0,1.3826681]
[1756989236328,3.08438139,110790.0,110780.0,1.3826681]
[1756989236531,3.08438139,110790.0,110780.0,1.29240318]
[1756989236926,2.7209526,110790.0,110780.0,1.29240318]
[1756989237432,2.7219526,110790.0,110780.0,1.29240318]
[1756989239016,2.7219526,110790.0,110780.0,1.29140318]
[1756989239625,1.74524,110790.0,110780.0,1.29140318]
[1756989239833,2.7205923,110790.0,110780.0,1.29140318]
[1756989240030,1.74524,110790.0,110780.0,1.29140318]
[1756989240228,2.62972,110790.0,110780.0,1.29140318]
[1756989240530,2.7199523,110790.0,110780.0,1.29140318]
[1756989240731,1.74524,110790.0,110780.0,1.65483197]
[1756989240930,2.6298,110790.0,110780.0,1.65483197]
[1756989241128,2.62948,110790.0,110780.0,1.99509689]
[1756989241726,2.7197129,110790.0,110780.0,1.6316681]
[1756989241941,2.7197129,110790.0,110780.0,1.29140318]
[1756989242325,3.33314169,110790.0,110780.0,1.06548192]
[1756989242524,3.37680169,110790.0,110780.0,0.64989192]
[1756989242834,3.37680169,110790.0,110780.0,0.65189192]
[1756989243430,4.06860169,110790.0,110780.0,0.53451]
[1756989243634,4.06860169,110790.0,110780.0,0.00451]
[1756989244231,4.07060169,110790.0,110780.0,0.00451]
[1756989245332,4.08108169,110790.0,110780.0,0.00451]
[1756989245535,3.75208169,110790.0,110780.0,0.00451]
[1756989245738,3.88208169,110790.0,110780.0,0.00451]
[1756989246636,3.75208169,110790.0,110780.0,0.00451]
[1756989246833,3.75128169,110790.0,110780.0,0.00451]
[1756989247234,3.1269729,110790.0,110780.0,0.4203]
[1756989247537,2.7660529,110790.0,110780.0,0.4203]
[1756989247729,2.6757,110790.0,110780.0,0.7605411]
[1756989247929,2.6412,110790.0,110780.0,0.7605411]
[1756989248133,2.64112,110790.0,110780.0,1.1213411]
[1756989248333,2.765853,110790.0,110780.0,0.5105411]
[1756989248832,2.765853,110790.0,110780.0,0.4203]
[1756989248833,3.12928179,110790.0,110780.0,0.4203]
[1756989249028,2.765853,110790.0,110780.0,0.4203]
[1756989249229,3.12928179,110790.0,110780.0,0.4203]
[1756989249442,3.12728179,110790.0,110780.0,0.4203]
[1756989249826,3.12728179,110790.0,110780.0,0.4213]
[1756989250027,3.48808179,110790.0,110780.0,0.38614]
[1756989250231,3.48908179,110790.0,110780.0,0.38614]
[1756989250430,3.49924179,110790.0,110780.0,0.36551]
[1756989250639,3.49924179,110790.0,110780.0,0.36451]
[1756989251138,3.74924179,110790.0,110780.0,0.36451]
[1756989251941,3.75024179,110790.0,110780.0,0.36451]
[1756989253627,3.75024179,110790.0,110780.0,0.00451]
[1756989253833,3.75024179,110790.0,110780.0,0.03451]
[1756989254742,3.386813,110790.0,110780.0,0.03451]
[1756989255038,3.75024179,110790.0,110780.0,0.03451]
[1756989256039,3.75024179,110790.0,110780.0,0.56451]
[1756989256040,2.85736179,110790.0,110780.0,0.56451]
[1756989256231,3.49708179,110790.0,110780.0,0.56451]
[1756989256636,3.49708179,110790.0,110780.0,0.24451]
[1756989257041,3.49708179,110790.0,110780.0,0.61451]
[1756989257243,3.49708179,110790.0,110780.0,0.16451]
[1756989257538,3.49708179,110790.0,110780.0,0.15451]
[1756989257936,3.49708179,110790.0,110780.0,0.56451]
[1756989258336,3.49708179,110790.0,110780.0,0.60073]
[1756989258337,2.233773,110790.0,110780.0,0.60073]
[1756989258538,1.872973,110790.0,110780.0,0.62243]
[1756989258734,2.59720179,110790.0,110780.0,0.62243]
[1756989258938,2.60691179,110790.0,110780.0,0.13451]
[1756989259136,3.49531179,110790.0,110780.0,0.00451]
[1756989259441,3.49531179,110790.0,110780.0,0.11451]
[1756989261242,3.49435179,110790.0,110780.0,0.10451]
[1756989261540,3.49153088,110790.0,110780.0,0.52451]
[1756989261835,2.760253,110790.0,110780.0,0.58243]
[1756989262035,3.121053,110790.0,110780.0,0.58243]
[1756989262245,3.48106088,110790.0,110780.0,0.58243]
[1756989262631,3.49077088,110790.0,110780.0,0.52451]
[1756989263533,2.60409088,110790.0,110780.0,0.52451]
[1756989263738,3.49077088,110790.0,110780.0,0.52451]
[1756989263940,3.49077088,110790.0,110780.0,0.13451]
[1756989265739,3.62077088,110790.0,110780.0,0.13451]
[1756989266749,2.73409088,110790.0,110780.0,0.13451]
[1756989266949,2.243483,110790.0,110780.0,0.13451]
[1756989267245,3.48889088,110790.0,110780.0,0.13451]
[1756989267440,3.48865088,110790.0,110780.0,0.13451]
[1756989267843,3.79941088,110790.0,110780.0,0.13451]
[1756989268042,2.91409088,110790.0,110780.0,0.13451]
[1756989268344,3.79921088,110790.0,110780.0,0.13451]
[1756989269745,3.118093,110790.0,110780.0,0.06243]
[1756989269938,3.48841088,110790.0,110780.0,0.56451]
[1756989270338,3.47870088,110790.0,110780.0,0.60073]
[1756989270550,3.47870088,110790.0,110780.0,0.62243]
[1756989271050,3.48841088,110790.0,110780.0,0.56451]
[1756989271451,2.60409088,110790.0,110780.0,0.56451]
[1756989271648,3.48833088,110790.0,110780.0,0.56451]
[1756989272655,3.48833088,110790.0,110780.0,0.12451]
[1756989273042,3.57833088,110790.0,110780.0,0.12451]
[1756989273447,2.69409088,110790.0,110780.0,0.00451]
[1756989273651,3.57745088,110790.0,110780.0,0.00451]
[1756989274455,2.60409088,110790.0,110780.0,0.60451]
[1756989274648,2.60409088,110790.0,110780.0,0.00451]
[1756989274649,3.126483,110790.0,110780.0,0.00451]
[1756989274844,2.765683,110790.0,110780.0,0.06243]
[1756989275053,3.48709088,110790.0,110780.0,0.66243]
[1756989276056,1.872973,110790.0,110780.0,0.91243]
[1756989276256,2.756333,110790.0,110780.0,1.0026707]
[1756989276453,1.872973,110790.0,110780.0,1.0026707]
[1756989276956,2.63128,110790.0,110780.0,1.49960939]
[1756989277156,2.63124,110790.0,110780.0,1.49960939]
[1756989277545,2.7214726,110790.0,110780.0,1.49960939]
[1756989277745,2.7194726,110790.0,110780.0,1.49960939]
[1756989278051,2.7194726,110790.0,110780.0,1.50060939]
[1756989278560,2.7174726,110790.0,110780.0,1.50060939]
[1756989278855,2.7184726,110790.0,110780.0,1.41036869]
[1756989279253,2.7184726,110790.0,110780.0,1.50060939]
[1756989280259,2.7178326,110790.0,110780.0,1.50060939]
[1756989280453,2.7178326,110790.0,110780.0,1.49960939]
[1756989281462,2.7178326,110790.0,110780.0,1.58987431]
[1756989281659,1.8354726,110790.0,110780.0,1.59087431]
[1756989281957,2.7165526,110790.0,110780.0,1.59087431]
[1756989283748,2.7165526,110790.0,110780.0,1.75298754]
[1756989285060,1.74424,110790.0,110780.0,1.75298754]
[1756989285261,2.7139125,110790.0,110780.0,2.11359542]
[1756989285456,2.7139125,110790.0,110780.0,1.59087431]
[1756989286762,2.7139125,110790.0,110780.0,1.25060939]
[1756989286970,2.7139125,110790.0,110780.0,1.16036869]
[1756989287161,2.7139125,110790.0,110780.0,1.25060939]
[1756989287865,2.7139125,110790.0,110780.0,1.24960939]
[1756989288661,2.7139125,110790.0,110780.0,1.41172262]
[1756989289566,2.62336,110790.0,110780.0,1.41172262]
[1756989289867,2.62336,110790.0,110780.0,1.50198754]
[1756989290067,1.74524,110790.0,110780.0,1.50198754]
[1756989290274,2.62304,110790.0,110780.0,1.95048219]
[1756989290460,2.62292,110790.0,110780.0,1.95048219]
[1756989290661,2.62292,110790.0,110780.0,2.11244356]
[1756989290861,1.74524,110790.0,110780.0,2.11244356]
[1756989291062,2.62264,110790.0,110780.0,2.11244356]
[1756989291363,2.62264,110790.0,110780.0,2.11344356]
[1756989291869,2.62164,110790.0,110780.0,2.11344356]
[1756989292068,1.74424,110790.0,110780.0,2.11344356]
[1756989292268,2.62164,110790.0,110780.0,2.11344356]
[1756989293170,2.62056,110790.0,110780.0,2.11344356]
[1756989293773,2.62056,110790.0,110780.0,1.95148219]
[1756989293971,2.6204,110790.0,110780.0,1.95148219]
[1756989294873,2.6204,110790.0,110780.0,2.11339509]
[1756989295567,2.62008,110790.0,110780.0,2.11339509]
[1756989295768,2.62008,110790.0,110780.0,1.95148219]
[1756989297067,2.7103125,110790.0,110780.0,1.59087431]
[1756989297267,2.62008,110790.0,110780.0,1.59087431]
[1756989297668,2.7103125,110790.0,110780.0,1.59087431]
[1756989297967,2.7103125,110790.0,110780.0,1.34087431]
[1756989299469,2.7103125,110790.0,110780.0,1.25060939]
[1756989300176,2.7081526,110790.0,110780.0,1.34087431]
[1756989301263,2.61792,110790.0,110780.0,1.34087431]
[1756989301473,2.7087525,110790.0,110780.0,1.34087431]
[1756989302076,2.61852,110790.0,110780.0,1.34087431]
[1756989302267,2.7087527,110790.0,110780.0,1.34087431]
[1756989306272,3.35519058,110790.0,110780.0,0.79956869]
[1756989306476,3.36871058,110790.0,110780.0,0.60551]
[1756989306665,3.72951058,110790.0,110780.0,0.60551]
[1756989307475,3.86951058,110790.0,110780.0,0.18551]
[1756989307778,3.72951058,110790.0,110780.0,0.18551]
[1756989307980,3.73051058,110790.0,110780.0,0.18551]
[1756989308480,3.88051058,110790.0,110780.0,0.18551]
[1756989308674,3.87951058,110790.0,110780.0,0.18451]
[1756989309178,4.03151058,110790.0,110780.0,0.18451]
[1756989310081,4.03351058,110790.0,110780.0,0.18451]
[1756989310378,3.15923058,110790.0,110780.0,0.18451]
[1756989310574,4.03035058,110790.0,110780.0,0.06451]
[1756989311178,0.090241,110780.0,110770.0,0.0002]
[1756989311371,0.81164888,110780.0,110770.0,0.07]
[1756989311570,0.97280209,110780.0,110770.0,0.07]
[1756989312374,0.83280209,110780.0,110770.0,0.07]
[1756989312681,1.70532209,110780.0,110770.0,0.52988]
[1756989312882,1.70532209,110780.0,110770.0,0.22]
[1756989313077,1.85632209,110780.0,110770.0,0.22]
[1756989313282,0.98380209,110780.0,110770.0,0.22]
[1756989313486,2.04624209,110780.0,110770.0,0.22]
[1756989314182,0.0902489,110770.0,110760.0,0.26483436]
[1756989314381,0.0902489,110770.0,110760.0,0.71437776]
[1756989314784,0.0902489,110770.0,110760.0,0.80463526]
[1756989314983,0.9622889,110770.0,110760.0,0.80463526]
[1756989315172,0.9622889,110770.0,110760.0,0.71437776]
[1756989315173,0.9722889,110770.0,110760.0,0.71437776]
[1756989315378,0.9622889,110770.0,110760.0,0.71437776]
[1756989315880,0.9622889,110770.0,110760.0,0.80463516]
[1756989316076,0.9622889,110770.0,110760.0,0.71437776]
[1756989316283,0.9622889,110770.0,110760.0,0.80463516]
[1756989316478,0.9613689,110770.0,110760.0,1.16543516]
[1756989316783,0.9613689,110770.0,110760.0,0.80463516]
[1756989317179,0.9613689,110770.0,110760.0,0.71537776]
[1756989319678,1.32197678,110770.0,110760.0,0.71537776]
[1756989319973,0.9613689,110770.0,110760.0,0.71537776]
[1756989320175,1.32197678,110770.0,110760.0,0.71537776]
[1756989320986,0.45085678,110770.0,110760.0,0.80563486]
[1756989321188,0.0902489,110770.0,110760.0,1.16643486]
[1756989321388,0.9595689,110770.0,110760.0,1.41643486]
[1756989321780,0.0902489,110770.0,110760.0,1.41643486]
[1756989322088,0.9600089,110770.0,110760.0,1.41643486]
[1756989322482,0.9598089,110770.0,110760.0,1.55137075]
[1756989324782,0.9598089,110770.0,110760.0,1.21111365]
[1756989324985,1.3206089,110770.0,110760.0,0.73553589]
[1756989325186,1.68365838,110770.0,110760.0,0.54551]
[1756989325578,1.90173316,110770.0,110760.0,0.54551]
[1756989325783,1.90173316,110770.0,110760.0,0.59985]
[1756989326290,1.61117103,110770.0,110760.0,0.59985]
[1756989327595,1.68375585,110770.0,110760.0,0.59985]
[1756989329290,1.32295585,110770.0,110760.0,0.6901071]
[1756989329492,0.45339585,110770.0,110760.0,0.6901071]
[1756989329689,0.0902489,110770.0,110760.0,0.6901071]
[1756989329895,0.86704,110770.0,110760.0,1.79990418]
[1756989330105,0.12027932,110780.0,110770.0,0.144589]
[1756989330287,0.98751932,110780.0,110770.0,0.724589]